Workbook

Sheet Sheet1
A1: 合肥高新技术产业开发区人民法院2021年招聘编外审判辅助人员初选人员表
A2: 序号 | B2: 岗位名称 | C2: 性别 | D2: 笔试成绩 | E2: 机试成绩 | F2: 面试室 | G2: 面试抽签号 | H2: 面试成绩 | I2: 总成绩
A3: 1 | B3: 书记员01-210801 | C3: 女 | D3: 66 | E3: 90.22 | F3: 面试室一 | G3: 01-12 | H3: 84.96 | I3: =D3*0.4+E3*0.2+H3*0.4 -> 78.43
A4: 2 | B4: 书记员01-210801 | C4: 女 | D4: 52 | E4: 99.11 | F4: 面试室一 | G4: 01-03 | H4: 83.86 | I4: =D4*0.4+E4*0.2+H4*0.4 -> 74.17
A5: 3 | B5: 书记员01-210801 | C5: 女 | D5: 58 | E5: 100 | F5: 面试室一 | G5: 01-19 | H5: 76.78 | I5: =D5*0.4+E5*0.2+H5*0.4 -> 73.91
A6: 4 | B6: 书记员01-210801 | C6: 男 | D6: 55.5 | E6: 86.47 | F6: 面试室一 | G6: 01-02 | H6: 85.20 | I6: =D6*0.4+E6*0.2+H6*0.4 -> 73.57
A7: 5 | B7: 书记员01-210801 | C7: 男 | D7: 57 | E7: 92.94 | F7: 面试室一 | G7: 01-10 | H7: 78.83 | I7: =D7*0.4+E7*0.2+H7*0.4 -> 72.92
A8: 6 | B8: 书记员01-210801 | C8: 女 | D8: 51 | E8: 100 | F8: 面试室一 | G8: 01-05 | H8: 80.37 | I8: =D8*0.4+E8*0.2+H8*0.4 -> 72.55
A9: 7 | B9: 书记员01-210801 | C9: 女 | D9: 45.5 | E9: 98.57 | F9: 面试室一 | G9: 01-04 | H9: 82.93 | I9: =D9*0.4+E9*0.2+H9*0.4 -> 71.09
A10: 8 | B10: 书记员01-210801 | C10: 女 | D10: 50.5 | E10: 90.86 | F10: 面试室一 | G10: 01-23 | H10: 80.70 | I10: =D10*0.4+E10*0.2+H10*0.4 -> 70.65
A11: 9 | B11: 书记员01-210801 | C11: 男 | D11: 49.5 | E11: 100 | F11: 面试室一 | G11: 01-08 | H11: 76.83 | I11: =D11*0.4+E11*0.2+H11*0.4 -> 70.53
A12: 10 | B12: 书记员01-210801 | C12: 女 | D12: 58.5 | E12: 76.1 | F12: 面试室一 | G12: 01-01 | H12: 79.40 | I12: =D12*0.4+E12*0.2+H12*0.4 -> 70.38
A13: 11 | B13: 书记员02-210802 | C13: 女 | D13: 53.5 | E13: 99.16 | F13: 面试室二 | G13: 02-03 | H13: 81.84 | I13: =D13*0.4+E13*0.2+H13*0.4 -> 73.97
A14: 12 | B14: 书记员02-210802 | C14: 女 | D14: 54.5 | E14: 85.63 | F14: 面试室二 | G14: 02-13 | H14: 86.21 | I14: =D14*0.4+E14*0.2+H14*0.4 -> 73.41
A15: 13 | B15: 书记员02-210802 | C15: 男 | D15: 51.5 | E15: 92.99 | F15: 面试室二 | G15: 02-08 | H15: 83.74 | I15: =D15*0.4+E15*0.2+H15*0.4 -> 72.69
A16: 14 | B16: 书记员02-210802 | C16: 女 | D16: 48.5 | E16: 93.04 | F16: 面试室二 | G16: 02-01 | H16: 85.09 | I16: =D16*0.4+E16*0.2+H16*0.4 -> 72.04
A17: 15 | B17: 书记员02-210802 | C17: 女 | D17: 52 | E17: 82.17 | F17: 面试室二 | G17: 02-07 | H17: 86.19 | I17: =D17*0.4+E17*0.2+H17*0.4 -> 71.71
A18: 16 | B18: 辅警（限男性）-210803 | C18: 男 | D18: 54.5 | E18: 100 | F18: 面试室二 | G18: 4 | H18: 78.52 | I18: =D18*0.4+E18*0.2+H18*0.4 -> 73.21
A19: 17 | B19: 辅警（限男性）-210803 | C19: 男 | D19: 58.5 | E19: 45.73 | F19: 面试室二 | G19: 1 | H19: 83.89 | I19: =D19*0.4+E19*0.2+H19*0.4 -> 66.10
A20: 18 | B20: 辅警（限男性）-210803 | C20: 男 | D20: 56 | E20: 54.57 | F20: 面试室二 | G20: 7 | H20: 79.60 | I20: =D20*0.4+E20*0.2+H20*0.4 -> 65.15
A21: 19 | B21: 辅警（限男性）-210803 | C21: 男 | D21: 57 | E21: 36.89 | F21: 面试室二 | G21: 3 | H21: 85.58 | I21: =D21*0.4+E21*0.2+H21*0.4 -> 64.41
A22: 20 | B22: 辅警（限男性）-210803 | C22: 男 | D22: 49 | E22: 61.14 | F22: 面试室二 | G22: 5 | H22: 78.10 | I22: =D22*0.4+E22*0.2+H22*0.4 -> 63.07
